fUST/lending_fUST_20241213
["ID","MTS","AMOUNT","RATE_DAILY","PERIOD"]
[345182023,1734077453321,-500.0,0.00027671,7]
[345182025,1734077453331,-1122.67,0.00027671,7]
[345182027,1734077453341,-500.0,0.00027671,7]
[345182029,1734077453350,-500.0,0.00027671,7]
[345182031,1734077453359,-928.46,0.00027671,7]
[345182033,1734077453368,-7846.44,0.00027671,7]
[345182035,1734077453378,-896.28,0.00027671,7]
[345182037,1734077453388,-500.0,0.00027671,7]
[345182039,1734077453398,-506.89,0.00027671,7]
[345182041,1734077453408,-500.0,0.00027671,7]
[345182043,1734077453417,-860.87,0.00027671,7]
[345182045,1734077453427,-860.96,0.00027671,7]
[345182047,1734077453439,-686.76,0.00027671,7]
[345182049,1734077453448,-500.0,0.00027671,7]
[345182051,1734077453457,-10290.18,0.00027671,7]
[345182053,1734077453466,-500.0,0.00027671,7]
[345182055,1734077453475,-500.0,0.00027671,7]
[345182057,1734077453484,-854.42,0.00027671,7]
[345182059,1734077453493,-500.0,0.00027671,7]
[345182061,1734077453503,-516.83,0.00027671,7]
[345182063,1734077453512,-500.0,0.00027671,7]
[345182065,1734077453522,-500.0,0.00027671,7]
[345182067,1734077453532,-500.0,0.00027671,7]
[345182069,1734077453541,-500.0,0.00027671,7]
[345182071,1734077453551,-500.0,0.00027671,7]
[345182073,1734077453560,-586.41517658,0.00027671,7]
[345182075,1734077453574,-611.25890119,0.00027671,7]
[345182077,1734077453584,-551.8,0.00027671,7]
[345182079,1734077453593,-1663.07,0.00027671,7]
[345182081,1734077453603,-500.0,0.00027671,7]
[345182083,1734077453613,-500.0,0.00027671,7]
[345182085,1734077453623,-1255.05,0.00027671,7]
[345182087,1734077453633,-500.0,0.00027671,7]
[345182089,1734077453644,-500.0,0.00027671,7]
[345182091,1734077453653,-3609.49,0.00027671,7]
[345182093,1734077453663,-500.0,0.00027671,7]
[345182095,1734077453672,-500.0,0.00027671,7]
[345182097,1734077453682,-3972.64502625,0.00027671,7]
[345185657,1734077656126,165.342998,0.00013973,2]
[345185723,1734078632251,-4215.0,0.00026,10]
[345185725,1734078632260,-300.0,0.00026021,2]
[345185727,1734078632272,-300.0,0.00026021,2]
[345185729,1734078632281,-4918.38478172,0.00026022,2]
[345185733,1734078632308,-5683.44282898,0.00026022,2]
[345185735,1734078632318,-156.73648733,0.00027296,2]
[345185737,1734078632327,-1000.0,0.000273,2]
[345185739,1734078632337,-301.56819857,0.00027396,2]
[345185741,1734078632348,-500.0,0.00027396,2]
[345185743,1734078632357,-500.0,0.00027396,2]
[345185745,1734078632367,-489.42562103,0.00027396,2]
[345185747,1734078632375,-500.0,0.00027396,2]
[345185749,1734078632385,-379.99658681,0.00027396,2]
[345185751,1734078632395,-500.0,0.00027396,2]
[345185753,1734078632404,-600.0,0.00027396,2]
[345185756,1734078632413,-500.0,0.00027396,2]
[345185759,1734078632423,-500.0,0.00027396,2]
[345185762,1734078632432,-500.0,0.00027396,2]
[345185764,1734078632441,-164.41093656,0.00027396,2]
[345185766,1734078632452,-500.0,0.00027396,2]
[345185768,1734078632462,-500.0,0.00027396,2]
[345185770,1734078632472,-153.60323267,0.00027396,2]
[345185772,1734078632481,-500.0,0.00027397,7]
[345185774,1734078632490,-500.0,0.00027397,7]
[345185776,1734078632500,-500.0,0.00027397,7]
[345185778,1734078632509,-500.0,0.00027397,7]
[345185780,1734078632518,-500.0,0.00027397,7]
[345185782,1734078632528,-500.0,0.00027397,7]
[345185784,1734078632537,-500.0,0.00027397,7]
[345185786,1734078632546,-500.0,0.00027397,7]
[345185788,1734078632555,-221.89137397,0.00027397,7]
[345185790,1734078632564,-500.0,0.00027397,7]
[345185792,1734078632573,-500.0,0.00027397,7]
[345185794,1734078632582,-500.0,0.00027397,7]
[345185796,1734078632591,-423.22794166,0.00027397,7]
[345185798,1734078632600,-500.0,0.00027397,7]
[345185800,1734078632610,-500.0,0.00027397,7]
[345185802,1734078632619,-783.35,0.00027397,7]
[345185804,1734078632628,-200.0,0.00027397,7]
[345185805,1734078632637,-500.0,0.00027397,7]
[345185807,1734078632646,-500.0,0.00027397,7]
[345185809,1734078632655,-500.0,0.00027397,7]
[345185811,1734078632664,-500.0,0.00027397,7]
[345185812,1734078632673,-500.0,0.00027397,7]
[345185814,1734078632682,-500.0,0.00027397,7]
[345185816,1734078632691,-507.82,0.00027397,7]
[345185818,1734078632703,-278.31458326,0.00027397,7]
[345185820,1734078632712,-500.0,0.00027397,7]
[345185822,1734078632722,-500.0,0.00027397,7]
[345185824,1734078632731,-500.0,0.00027397,7]
[345185826,1734078632741,-642.32341197,0.00027397,7]
[345185828,1734078632750,-500.0,0.00027397,7]
[345185830,1734078632759,-635.99,0.00027397,7]
[345185832,1734078632769,-500.0,0.00027397,7]
[345185834,1734078632778,-500.0,0.00027397,7]
[345185837,1734078632789,-500.0,0.00027397,7]
[345185839,1734078632799,-500.0,0.00027397,7]
[345185841,1734078632808,-500.0,0.00027397,7]
[345185843,1734078632817,-500.0,0.00027397,7]
[345185845,1734078632827,-500.0,0.00027397,7]
[345185847,1734078632836,-500.0,0.00027397,7]
[345185849,1734078632845,-500.0,0.00027397,7]
[345185850,1734078632854,-500.0,0.00027397,7]
[345185853,1734078632864,-500.0,0.00027397,7]
[345185854,1734078632874,-500.0,0.00027397,7]
[345185856,1734078632883,-1102.96,0.00027397,7]
[345185857,1734078632893,-500.0,0.00027397,7]
[345185858,1734078632902,-500.0,0.00027397,7]
[345185859,1734078632911,-500.0,0.00027397,7]
[345185860,1734078632921,-500.0,0.00027397,7]
[345185861,1734078632930,-500.0,0.00027397,7]
[345185862,1734078632939,-500.0,0.00027397,7]
[345185863,1734078632948,-953.29,0.00027397,7]
[345185864,1734078632961,-500.0,0.00027397,7]
[345185865,1734078632970,-500.0,0.00027397,7]
[345185866,1734078632980,-500.0,0.00027397,7]
[345185867,1734078632990,-500.0,0.00027397,7]
[345185868,1734078633000,-500.0,0.00027397,7]
[345185869,1734078633009,-500.0,0.00027397,2]
[345185870,1734078633019,-500.0,0.00027397,7]
[345185871,1734078633028,-500.0,0.00027397,7]
[345185872,1734078633037,-500.0,0.00027397,7]
[345185873,1734078633047,-632.97,0.00027397,7]
[345185874,1734078633057,-500.0,0.00027397,7]
[345185875,1734078633066,-500.0,0.00027397,7]
[345185876,1734078633075,-500.0,0.00027397,7]
[345185877,1734078633084,-791.85,0.00027397,7]
[345185878,1734078633093,-511.71328092,0.00027397,7]
[345185879,1734078633102,-506.98,0.00027397,7]
[345185880,1734078633112,-500.0,0.00027397,7]
[345185881,1734078633121,-500.0,0.00027397,7]
[345185882,1734078633130,-500.0,0.00027397,7]
[345185883,1734078633139,-2029.66,0.00027397,7]
[345185884,1734078633149,-500.0,0.00027397,7]
[345185885,1734078633158,-500.0,0.00027397,7]
[345185886,1734078633168,-500.0,0.00027397,7]
[345185887,1734078633177,-500.0,0.00027397,7]
[345185888,1734078633187,-500.0,0.00027397,7]
[345185889,1734078633197,-500.0,0.00027397,7]
[345185890,1734078633208,-500.0,0.00027397,7]
[345185891,1734078633218,-500.0,0.00027397,7]
[345185892,1734078633227,-500.0,0.00027397,7]
[345185893,1734078633237,-500.0,0.00027397,7]
[345185894,1734078633246,-152.33849963,0.00027397,7]
[345185895,1734078633255,-500.0,0.00027397,7]
[345185896,1734078633268,-500.0,0.00027397,7]
[345185897,1734078633277,-652.81,0.00027397,7]
[345185898,1734078633288,-500.0,0.00027397,7]
[345185899,1734078633297,-629.53,0.00027397,7]
[345185900,1734078633307,-500.0,0.00027397,7]
[345185901,1734078633316,-320.88782322,0.00027397,7]
[345185902,1734078633325,-500.0,0.00027397,7]
[345185903,1734078633335,-518.98,0.00027397,7]
[345185904,1734078633345,-572.55,0.00027397,7]
[345185905,1734078633356,-500.0,0.00027397,7]
[345185906,1734078633365,-500.0,0.00027397,7]
[345185907,1734078633374,-500.0,0.00027397,7]
[345185908,1734078633383,-763.88,0.00027397,7]
[345185909,1734078633392,-500.0,0.00027397,7]
[345185910,1734078633401,-500.0,0.00027397,7]
[345185911,1734078633410,-789.22,0.00027397,7]
[345185912,1734078633419,-436.68984324,0.00027397,7]
[345185913,1734078633428,-500.0,0.00027397,7]
[345185914,1734078633437,-500.0,0.00027397,7]
[345185915,1734078633446,-500.0,0.00027397,7]
[345185916,1734078633457,-500.0,0.00027397,7]
[345185917,1734078633465,-910.97,0.00027397,7]
[345185918,1734078633474,-1056.83,0.00027397,7]
[345185919,1734078633483,-500.0,0.00027397,7]
[345185920,1734078633492,-500.0,0.00027397,7]
[345185921,1734078633501,-500.0,0.00027397,7]
[345185922,1734078633511,-275.94401632,0.00027397,7]
[345185923,1734078633520,-500.0,0.00027397,7]
[345185924,1734078633529,-500.0,0.00027397,7]
[345185925,1734078633539,-500.0,0.00027397,7]
[345185926,1734078633548,-500.0,0.00027397,7]
[345185927,1734078633557,-1000.0,0.00027397,2]
[345185928,1734078633565,-500.0,0.00027397,7]
[345185929,1734078633574,-500.0,0.00027397,7]
[345185930,1734078633583,-500.0,0.00027397,7]
[345185931,1734078633593,-500.0,0.00027397,7]
[345185932,1734078633602,-1158.96,0.00027397,7]
[345185933,1734078633610,-500.0,0.00027397,7]
[345185934,1734078633619,-500.0,0.00027397,7]
[345185935,1734078633628,-168.0,0.00027397,7]
[345185936,1734078633637,-500.0,0.00027397,7]
[345185937,1734078633647,-607.31,0.00027397,7]
[345185938,1734078633656,-974.96,0.00027397,7]
[345185939,1734078633665,-954.4,0.00027397,7]
[345185940,1734078633675,-500.0,0.00027397,7]
[345185941,1734078633684,-500.0,0.00027397,7]
[345185942,1734078633694,-500.0,0.00027397,7]
[345185943,1734078633704,-500.0,0.00027397,7]
[345185944,1734078633713,-500.0,0.00027397,7]
[345185945,1734078633722,-500.0,0.00027397,7]
[345185946,1734078633731,-500.0,0.00027397,7]
[345185947,1734078633740,-500.0,0.00027397,7]
[345185948,1734078633750,-500.0,0.00027397,7]
[345185949,1734078633759,-500.0,0.00027397,7]
[345185950,1734078633768,-500.0,0.00027397,7]
[345185951,1734078633778,-789.13,0.00027397,7]
[345185952,1734078633787,-500.0,0.00027397,7]
[345185953,1734078633797,-500.0,0.00027397,7]
[345185954,1734078633806,-500.0,0.00027397,7]
[345185955,1734078633816,-500.0,0.00027397,7]
[345185956,1734078633825,-500.0,0.00027397,7]
[345185957,1734078633836,-672.89,0.00027397,7]
[345185958,1734078633845,-500.0,0.00027397,7]
[345185959,1734078633855,-500.0,0.00027397,7]
[345185960,1734078633864,-500.0,0.00027397,7]
[345185961,1734078633874,-500.0,0.00027397,7]
[345185962,1734078633883,-500.0,0.00027397,7]
[345185963,1734078633893,-1041.67,0.00027397,7]
[345185964,1734078633903,-500.0,0.00027397,7]
[345185965,1734078633913,-834.43,0.00027397,7]
[345185966,1734078633922,-601.32,0.00027397,7]
[345185967,1734078633932,-500.0,0.00027397,7]
[345185968,1734078633941,-500.0,0.00027397,7]
[345185969,1734078633951,-500.0,0.00027397,7]
[345185970,1734078633961,-500.0,0.00027397,7]
[345185971,1734078633970,-500.0,0.00027397,7]
[345185972,1734078633980,-563.47,0.00027397,7]
[345185973,1734078633989,-686.28,0.00027397,7]
[345185974,1734078633998,-843.84,0.00027397,7]
[345185975,1734078634008,-500.0,0.00027397,7]
[345185976,1734078634017,-293.75182316,0.00027397,7]
[345185977,1734078634026,-605.99,0.00027397,7]
[345185978,1734078634035,-500.0,0.00027397,7]
[345185979,1734078634044,-897.02,0.00027397,7]
[345185980,1734078634053,-379.7327547,0.00027397,7]
[345185981,1734078634063,-500.0,0.00027397,7]
[345185982,1734078634072,-500.0,0.00027397,7]
[345185983,1734078634082,-1001.09,0.00027397,7]
[345185984,1734078634091,-500.0,0.00027397,7]
[345185985,1734078634100,-500.0,0.00027397,7]
[345185986,1734078634109,-500.0,0.00027397,7]
[345185987,1734078634117,-500.0,0.00027397,7]
[345185988,1734078634126,-500.0,0.00027397,7]
[345185989,1734078634136,-577.13,0.00027397,7]
[345185990,1734078634144,-500.0,0.00027397,7]
[345185991,1734078634153,-727.34,0.00027397,7]
[345185992,1734078634162,-574.37,0.00027397,7]
[345185993,1734078634171,-500.0,0.00027397,7]
[345185994,1734078634180,-299.000363,0.00027397,7]
[345185995,1734078634189,-500.0,0.00027397,7]
[345185996,1734078634199,-500.0,0.00027397,7]
[345185997,1734078634210,-538.7,0.00027397,7]
[345185998,1734078634220,-520.52426966,0.00027397,7]
[345185999,1734078634230,-500.0,0.00027397,7]
[345186000,1734078634239,-684.45,0.00027397,7]
[345186001,1734078634249,-500.0,0.00027397,7]
[345186002,1734078634258,-527.89,0.00027397,7]
[345186003,1734078634269,-2506.74,0.00027397,7]
[345186004,1734078634280,-1304.53,0.00027397,7]
[345186005,1734078634289,-500.0,0.00027397,7]
[345186006,1734078634298,-500.0,0.00027397,7]
[345186007,1734078634308,-500.0,0.00027397,7]
[345186008,1734078634317,-2040.4,0.00027397,7]
[345186009,1734078634327,-2728.43,0.00027397,7]
[345186010,1734078634336,-622.64,0.00027397,7]
[345186011,1734078634346,-500.0,0.00027397,7]
[345186012,1734078634356,-500.0,0.00027397,7]
[345186013,1734078634365,-500.0,0.00027397,7]
[345186014,1734078634374,-500.0,0.00027397,7]
[345186015,1734078634383,-500.0,0.00027397,7]
[345186016,1734078634392,-5303.81,0.00027397,7]
[345186017,1734078634401,-516.76081624,0.00027397,7]
[345186018,1734078634410,-851.08,0.00027397,7]
[345186019,1734078634420,-1790.72,0.00027397,7]
[345186020,1734078634429,-500.0,0.00027397,7]
[345186021,1734078634439,-500.0,0.00027397,7]
[345186022,1734078634448,-500.0,0.00027397,7]
[345186023,1734078634459,-690.34,0.00027397,7]
[345186024,1734078634468,-500.0,0.00027397,7]
[345186025,1734078634477,-1163.96,0.00027397,7]
[345186026,1734078634486,-547.11502075,0.00027397,7]
[345186027,1734078634495,-500.0,0.00027397,7]
[345186028,1734078634504,-500.0,0.00027397,7]
[345186029,1734078634514,-545.77,0.00027397,7]
[345186030,1734078634523,-550.14,0.00027397,7]
[345186031,1734078634532,-500.0,0.00027397,7]
[345186032,1734078634541,-500.0,0.00027397,7]
[345186033,1734078634550,-827.28,0.00027397,7]
[345186034,1734078634559,-5378.92,0.00027397,7]
[345186035,1734078634568,-859.8,0.00027397,7]
[345186036,1734078634577,-500.0,0.00027397,7]
[345186037,1734078634586,-1085.21,0.00027397,7]
[345186038,1734078634595,-500.0,0.00027397,7]
[345186039,1734078634605,-500.0,0.00027397,7]
[345186040,1734078634614,-500.0,0.00027397,7]
[345186041,1734078634623,-821.59,0.00027397,7]
[345186042,1734078634632,-533.54,0.00027397,7]
[345186043,1734078634641,-500.0,0.00027397,7]
[345186044,1734078634650,-806.41,0.00027397,7]
[345186045,1734078634660,-500.0,0.00027397,7]
[345186046,1734078634669,-1029.12,0.00027397,7]
[345186047,1734078634678,-500.0,0.00027397,7]
[345186048,1734078634687,-500.0,0.00027397,7]
[345186049,1734078634697,-500.0,0.00027397,7]
[345186050,1734078634707,-500.0,0.00027397,7]
[345186051,1734078634716,-500.0,0.00027397,7]
[345186052,1734078634726,-500.0,0.00027397,7]
[345186053,1734078634734,-500.0,0.00027397,7]
[345186054,1734078634743,-500.0,0.00027397,7]
[345186055,1734078634753,-500.0,0.00027397,7]
[345186056,1734078634763,-500.0,0.00027397,7]
[345186057,1734078634772,-500.0,0.00027397,7]
[345186058,1734078634781,-500.0,0.00027397,7]
[345186059,1734078634790,-9507.43,0.00027397,7]
[345186060,1734078634800,-500.0,0.00027397,7]
[345186061,1734078634809,-500.0,0.00027397,7]
[345186062,1734078634818,-500.0,0.00027397,7]
[345186063,1734078634827,-790.41,0.00027397,7]
[345186064,1734078634837,-500.0,0.00027397,7]
[345186065,1734078634846,-783.22,0.00027397,7]
[345186066,1734078634856,-500.0,0.00027397,7]
[345186067,1734078634865,-500.0,0.00027397,7]
[345186068,1734078634874,-500.0,0.00027397,7]
[345186069,1734078634884,-682.83,0.00027397,7]
[345186070,1734078634894,-500.0,0.00027397,7]
[345186071,1734078634903,-500.0,0.00027397,7]
[345186072,1734078634912,-668.84,0.00027397,7]
[345186073,1734078634922,-1524.48,0.00027397,7]
[345186074,1734078634931,-500.0,0.00027397,7]
[345186075,1734078634941,-500.0,0.00027397,7]
[345186076,1734078634950,-500.0,0.00027397,7]
[345186077,1734078634960,-500.0,0.00027397,7]
[345186078,1734078634969,-500.0,0.00027397,7]
[345186079,1734078634978,-500.0,0.00027397,7]
[345186080,1734078634988,-500.0,0.00027397,7]
[345186081,1734078634997,-505.82,0.00027397,7]
[345186082,1734078635006,-725.37,0.00027397,7]
[345186083,1734078635015,-787.09,0.00027397,7]
[345186084,1734078635024,-779.13,0.00027397,7]
[345186085,1734078635034,-500.0,0.00027397,7]
[345186086,1734078635043,-7192.57,0.00027397,7]
[345186087,1734078635053,-500.0,0.00027397,7]
[345186088,1734078635062,-500.0,0.00027397,7]
[345186089,1734078635071,-1333.31,0.00027397,7]
[345186090,1734078635081,-500.0,0.00027397,7]
[345186091,1734078635090,-500.0,0.00027397,7]
[345186092,1734078635099,-782.55,0.00027397,7]
[345186093,1734078635108,-1200.95,0.00027397,7]
[345186094,1734078635117,-500.0,0.00027397,7]
[345186095,1734078635126,-500.0,0.00027397,7]
[345186096,1734078635136,-500.0,0.00027397,7]
[345186097,1734078635145,-343.19234171,0.00027397,7]
[345186098,1734078635154,-350.09389452,0.00027397,7]
[345186099,1734078635163,-500.0,0.00027397,7]
[345186100,1734078635176,-5537.21,0.00027397,7]
[345186101,1734078635187,-460.13939721,0.00027397,7]
[345186102,1734078635197,-500.0,0.00027397,7]
[345186103,1734078635209,-500.0,0.00027397,7]
[345186104,1734078635221,-2226.79,0.00027397,7]
[345186105,1734078635230,-500.0,0.00027397,7]
[345186106,1734078635239,-500.0,0.00027397,7]
[345186107,1734078635248,-500.0,0.00027397,7]
[345186108,1734078635257,-1517.55,0.00027397,7]
[345186109,1734078635267,-613.84099109,0.00027397,7]
[345186110,1734078635277,-500.0,0.00027397,7]
[345186111,1734078635286,-500.0,0.00027397,7]
[345186112,1734078635295,-500.0,0.00027397,7]
[345186113,1734078635304,-965.25,0.00027397,7]
[345186114,1734078635314,-500.0,0.00027397,7]
[345186115,1734078635324,-500.0,0.00027397,7]
[345186116,1734078635334,-500.0,0.00027397,7]
[345186117,1734078635347,-500.0,0.00027397,7]
[345186118,1734078635356,-1796.64,0.00027397,7]
[345186119,1734078635366,-258.48624679,0.00027397,7]
[345186120,1734078635375,-500.0,0.00027397,7]
[345186121,1734078635384,-1433.46,0.00027397,7]
[345186122,1734078635393,-500.0,0.00027397,7]
[345186123,1734078635403,-500.0,0.00027397,7]
[345186124,1734078635412,-500.0,0.00027397,7]
[345186125,1734078635422,-500.0,0.00027397,7]
[345186126,1734078635432,-680.55,0.00027397,7]
[345186127,1734078635442,-500.0,0.00027397,7]
[345186128,1734078635453,-3308.7,0.00027397,7]
[345186129,1734078635463,-500.0,0.00027397,7]
[345186130,1734078635471,-500.0,0.00027397,7]
[345186131,1734078635481,-547.79,0.00027397,7]
[345186132,1734078635490,-500.0,0.00027397,7]
[345186133,1734078635499,-500.0,0.00027397,7]
[345186134,1734078635508,-500.0,0.00027397,7]
[345186135,1734078635517,-500.0,0.00027397,7]
[345186136,1734078635527,-864.2,0.00027397,7]
[345186137,1734078635536,-500.0,0.00027397,7]
[345186138,1734078635545,-996.91,0.00027397,7]
[345186139,1734078635555,-500.0,0.00027397,7]
[345186140,1734078635563,-500.0,0.00027397,7]
[345186141,1734078635573,-500.0,0.00027397,7]
[345186142,1734078635582,-1115.73,0.00027397,7]
[345186143,1734078635591,-500.0,0.00027397,7]
[345186144,1734078635600,-542.95617784,0.00027397,7]
[345186145,1734078635609,-644.68,0.00027397,7]
[345186146,1734078635619,-500.0,0.00027397,7]
[345186147,1734078635628,-500.0,0.00027397,7]
[345186148,1734078635637,-500.0,0.00027397,7]
[345186149,1734078635646,-1725.36,0.00027397,7]
[345186150,1734078635656,-500.0,0.00027397,7]
[345186151,1734078635666,-500.0,0.00027397,7]
[345186152,1734078635675,-669.81,0.00027397,7]
[345186153,1734078635684,-804.63,0.00027397,7]
[345186154,1734078635694,-206.21845905,0.00027397,2]
[345186155,1734078635706,-655.9,0.000274,2]
[345186156,1734078635717,-1473.86,0.000275,4]
[345186157,1734078635726,-1172.0,0.00027516,15]
[345186158,1734078635736,-4455.959,0.00027553,2]
[345186159,1734078635745,-4000.0,0.000276,7]
[345186160,1734078635756,-10541.79602944,0.00027603,2]
[345186161,1734078635765,-5000.0,0.0002765,7]
[345186162,1734078635773,-343.9109147,0.0002767,2]
[345186163,1734078635783,-173.80611202,0.0002767,2]
[345186164,1734078635792,-500.0,0.00027671,7]
[345186165,1734078635801,-500.0,0.00027671,7]
[345186166,1734078635810,-500.0,0.00027671,7]
[345186167,1734078635819,-151.0,0.00027671,7]
[345186168,1734078635829,-500.0,0.00027671,7]
[345186169,1734078635838,-500.0,0.00027671,7]
[345186170,1734078635848,-500.0,0.00027671,7]
[345186171,1734078635857,-500.0,0.00027671,7]
[345186172,1734078635866,-500.0,0.00027671,7]
[345186173,1734078635875,-500.0,0.00027671,7]
[345186174,1734078635884,-500.0,0.00027671,7]
[345186175,1734078635894,-500.0,0.00027671,7]
[345186176,1734078635903,-337.21314421,0.00027671,7]
[345186177,1734078635913,-500.0,0.00027671,7]
[345186178,1734078635922,-783.35,0.00027671,7]
[345186179,1734078635931,-200.0,0.00027671,7]
[345186180,1734078635940,-500.0,0.00027671,7]
[345186181,1734078635949,-500.0,0.00027671,7]
[345186182,1734078635960,-500.0,0.00027671,7]
[345186183,1734078635969,-500.0,0.00027671,7]
[345186184,1734078635978,-500.0,0.00027671,7]
[345186185,1734078635987,-500.0,0.00027671,7]
[345186186,1734078635996,-507.82,0.00027671,7]
[345186187,1734078636005,-500.0,0.00027671,7]
[345186188,1734078636014,-500.0,0.00027671,7]
[345186189,1734078636023,-500.0,0.00027671,7]
[345186190,1734078636033,-500.0,0.00027671,7]
[345186191,1734078636042,-635.99,0.00027671,7]
[345186192,1734078636051,-500.0,0.00027671,7]
[345186193,1734078636060,-500.0,0.00027671,7]
[345186194,1734078636069,-500.0,0.00027671,7]
[345186195,1734078636078,-500.0,0.00027671,7]
[345186196,1734078636087,-500.0,0.00027671,7]
[345186197,1734078636096,-500.0,0.00027671,7]
[345186198,1734078636105,-500.0,0.00027671,7]
[345186199,1734078636114,-500.0,0.00027671,7]
[345186200,1734078636123,-500.0,0.00027671,7]
[345186201,1734078636133,-500.0,0.00027671,7]
[345186202,1734078636142,-500.0,0.00027671,7]
[345186203,1734078636153,-500.0,0.00027671,7]
[345186204,1734078636162,-1102.96,0.00027671,7]
[345186205,1734078636173,-500.0,0.00027671,7]
[345186206,1734078636343,-500.0,0.00027671,7]
[345186207,1734078636353,-500.0,0.00027671,7]
[345186208,1734078636362,-500.0,0.00027671,7]
[345186209,1734078636372,-500.0,0.00027671,7]
[345186210,1734078636382,-500.0,0.00027671,7]
[345186211,1734078636392,-953.29,0.00027671,7]
[345186212,1734078636402,-500.0,0.00027671,7]
[345186213,1734078636413,-500.0,0.00027671,7]
[345186214,1734078636422,-500.0,0.00027671,7]
[345186215,1734078636432,-500.0,0.00027671,7]
[345186216,1734078636441,-500.0,0.00027671,7]
[345186217,1734078636453,-500.0,0.00027671,2]
[345186218,1734078636462,-500.0,0.00027671,7]
[345186219,1734078636472,-500.0,0.00027671,7]
[345186220,1734078636482,-500.0,0.00027671,7]
[345186221,1734078636491,-632.97,0.00027671,7]
[345186222,1734078636502,-500.0,0.00027671,7]
[345186223,1734078636511,-500.0,0.00027671,7]
[345186224,1734078636522,-500.0,0.00027671,7]
[345186225,1734078636531,-791.85,0.00027671,7]
[345186226,1734078636541,-506.98,0.00027671,7]
[345186227,1734078636550,-500.0,0.00027671,7]
[345186228,1734078636560,-500.0,0.00027671,7]
[345186229,1734078636569,-500.0,0.00027671,7]
[345186230,1734078636579,-2029.66,0.00027671,7]
[345186231,1734078636588,-500.0,0.00027671,7]
[345186232,1734078636597,-500.0,0.00027671,7]
[345186233,1734078636606,-500.0,0.00027671,7]
[345186234,1734078636616,-500.0,0.00027671,7]
[345186235,1734078636626,-500.0,0.00027671,7]
[345186236,1734078636635,-500.0,0.00027671,7]
[345186237,1734078636644,-275.64405043,0.00027671,7]
[345186238,1734078636654,-500.0,0.00027671,7]
[345186239,1734078636663,-500.0,0.00027671,7]
[345186240,1734078636672,-500.0,0.00027671,7]
[345186241,1734078636682,-500.0,0.00027671,7]
[345186242,1734078636691,-500.0,0.00027671,7]
[345186243,1734078636702,-652.81,0.00027671,7]
[345186244,1734078636711,-500.0,0.00027671,7]
[345186245,1734078636720,-629.53,0.00027671,7]
[345186246,1734078636730,-500.0,0.00027671,7]
[345186247,1734078636739,-500.0,0.00027671,7]
[345186248,1734078636749,-518.98,0.00027671,7]
[345186249,1734078636759,-572.55,0.00027671,7]
[345186250,1734078636769,-500.0,0.00027671,7]
[345186251,1734078636779,-500.0,0.00027671,7]